Cogmind - Beta 13 @@@ ROGUE MODE // 2024.05.30 @ 21:24:10 Player: CONM Result: Destroyed by AJ-X9O(R) with Subdweller Machine Gun Performance ------------- Evolutions (0) 0 Regions Visited (3) 600 Robots Destroyed (27) 135 Value Destroyed (735) 735 Prototype IDs (0) 0 Alien Tech Used (0) 0 Bonus (0) 0 TOTAL SCORE: 1470 Bonus ------- None Cogmind --------- Core Integrity 0/250 Matter 290/300 Energy 178/200 System Corruption 2% Temperature Cool (6) Movement Treading (160) Location -10/Subcaves Parts ------- > --- POWER (1) -------- Subdweller Power Source > --- PROPULSION (2) --- Light Treads Light Treads > --- UTILITY (2) ------ Disposable Heat Sink Small Storage Unit > --- WEAPON (2) ------- Particle Gun Beam Cannon > --- INVENTORY (8) ---- Ion Engine Subdweller Optics Improved Terrain Scanner Seismic Detector Hacking Suite Subdweller Machine Gun Grenade Launcher Grenade Launcher Peak State ------------ > --- POWER ------------ Light Nuclear Core > --- PROPULSION ------- Light Treads Light Treads > --- UTILITY ---------- Disposable Heat Sink Small Storage Unit > --- WEAPON ----------- Riot Gun Particle Gun > --- INVENTORY -------- Ion Engine Subdweller Optics Improved Terrain Scanner Seismic Detector Hacking Suite Beam Cannon Grenade Launcher Grenade Launcher [Rating: 14] Favorites ----------- Power Light Nuclear Core Engine Light Ion Engine Power Core Light Nuclear Core Propulsion Light Treads Treads Light Treads Utility Small Storage Unit Device Seismic Detector Storage Small Storage Unit Weapon Grenade Launcher Energy Gun Medium Laser Energy Cannon Beam Cannon Ballistic Gun Assault Rifle Launcher Grenade Launcher Build | -11 -10 -10 -10 ------- Run | Yrd Mat Min Sub Slots Evolved . | . . . . Power . | . . . . Propulsion . | . . . . Utility . | . . . . Weapon . | . . . . Parts Attached 33 | 7 13 3 10 Power 6 | 1 3 1 1 Engine 3 | 1 1 . 1 Core 3 | . 2 1 . Reactor . | . . . . Propulsion 8 | 2 3 . 3 Treads 8 | 2 3 . 3 Leg . | . . . . Wheel . | . . . . Hover . | . . . . Flight . | . . . . Utility 4 | 2 . . 2 Device 3 | 1 . . 2 Storage 1 | 1 . . . Processor . | . . . . Hackware . | . . . . Protection . | . . . . Artifact . | . . . . Weapon 15 | 2 7 2 4 Energy Gun 5 | 2 1 . 2 Energy Cannon 2 | . . 1 1 Ballistic Gun 3 | . 2 . 1 Ballistic Cannon . | . . . . Launcher 5 | . 4 1 . Special Weapon . | . . . . Impact Weapon . | . . . . Slashing Weapon . | . . . . Piercing Weapon . | . . . . Special Melee Weapon . | . . . . Unidentified Prototypes . | . . . . Parts Lost 7 | . 2 . 5 Power 2 | . 1 . 1 Propulsion 3 | . . . 3 Utility . | . . . . Weapon 2 | . 1 . 1 Highest Loss Streak 3 | . 1 . 3 To Critical Strikes . | . . . . Average Slot Usage (%) 96 | . 97 100 95 Engine 2 | . 4 . . Core 10 | . 9 14 11 Treads 26 | . 27 28 25 Device 14 | . 14 14 14 Storage 14 | . 14 14 14 Energy Gun 9 | . 10 . 9 Energy Cannon 4 | . . 9 12 Ballistic Gun 4 | . 4 12 . Launcher 8 | . 10 5 4 Naked Turns . | . . . . Heaviest Build 19 | 13 17 17 19 Greatest Support 40 | 40 40 40 40 Greatest Overweight (x) 3 | . . . 3 Average Overweight (x) . | . . . . Largest Inventory Capacity 8 | 8 8 8 8 Average Capacity 7 | 7 8 8 8 Most Carried 8 | 4 8 8 8 Average Carried 7 | 2 7 8 7 Final Capacity 8 | 8 8 8 8 Final Carried 8 | 4 8 8 8 Class Distribution -------------------- 96% | Mutant 3% | Scavenger-Mutant Dominant Class ---------------- Mutant | -10/Materials Mutant | -10/Mines Mutant | -10/Subcaves Resources | -11 -10 -10 -10 ----------- Run | Yrd Mat Min Sub Matter Collected 689 | 269 108 95 217 Remotely . | . . . . Salvage Created 838 | 61 340 95 342 Parts 54 | 6 24 6 18 Haulers Intercepted 1 | . 1 . . Recyclers Shooed 2 | . 2 . . Parts Field Recycled . | . . . . Retrieved Matter . | . . . . Parts Self-Destructed 6 | . . . 6 Prevented . | . . . . Kills | -11 -10 -10 -10 ------- Run | Yrd Mat Min Sub Combat Hostiles Destroyed 21 | . 11 2 8 Guns 9 | . 4 1 4 Cannons 5 | . . 1 4 AOE 6 | . 6 . . Classes Destroyed 7 | 1 4 . 2 Tunneler 4 | 3 1 . . Hauler 1 | . 1 . . Operator 1 | . 1 . . Swarmer 6 | . 6 . . Grunt 7 | . 5 2 . Sentry 1 | . . . 1 Subdweller 7 | . . . 7 Best Kill Streak 4 | 2 4 2 3 Combat Bots Only 3 | . 3 2 3 Max Kills in Single Turn 3 | 1 3 1 1 Gunslinging . | . . . . Exploded 3 | . 3 . . Melee . | . . . . Uniques/NPCs Destroyed . | . . . . Combat | -11 -10 -10 -10 -------- Run | Yrd Mat Min Sub Hostile Shots Fired 114 | . 45 14 55 Missed 37 | . 14 2 21 Damage Taken 1305 | . 421 142 742 Core 259 | . 61 12 186 Absorbed by Shields . | . . . . Regen/Repaired (Parts) 66 | . 66 . . Core Remaining (%) 100 | 100 . . . Volleys Fired 99 | 8 44 9 38 Largest 2 | 1 2 2 2 Hottest 125 | 50 90 90 125 Shots Fired 163 | 8 66 17 72 Gun 104 | 8 53 6 37 Cannon 44 | . . 9 35 Launcher 15 | . 13 2 . Special . | . . . . Kinetic 19 | . 1 6 12 Thermal 109 | 8 34 9 58 Explosive 15 | . 13 2 . Electromagnetic 20 | . 18 . 2 Robot Hit Streak 22 | 4 22 6 15 Robot Miss Streak 3 | 2 3 1 2 Penetration Max . | . . . . Secondary Targets . | . . . . Shots Hit Robots 103 | 6 40 8 49 Core Hits 51 | 3 29 3 16 Critical Kills 1 | . . 1 . Critical Parts Destroyed . | . . . . Critical Strikes 7 | 1 5 1 . Burn 6 | 1 5 . . Destroy 1 | . . 1 . Melee Attacks . | . . . . Impact . | . . . . Slashing . | . . . . Piercing . | . . . . Sneak Attacks . | . . . . Combat Hostiles . | . . . . Follow-up Attacks . | . . . . Damage Inflicted 2016 | 75 948 165 828 Guns 1012 | 75 510 54 373 Cannons 526 | . . 71 455 Explosions 453 | . 413 40 . Melee . | . . . . Ramming 25 | . 25 . . Kinetic 242 | . 15 54 173 Thermal 1132 | 75 331 71 655 Explosive 453 | . 413 40 . Electromagnetic 164 | . 164 . . Impact . | . . . . Slashing . | . . . . Piercing . | . . . . Highest Corruption 2 | . 2 2 2 Average Corruption 1 | . 1 2 2 Corruption Purged . | . . . . Corruption Blocked . | . . . . Effects 19 | . . 3 16 Message Errors 7 | . . 2 5 Matter Fused 3 | . . . 3 Heat Flow Errors 2 | . . . 2 Energy Discharges 2 | . . . 2 Data Loss (minor) 1 | . . 1 . Data Loss (major) 2 | . . . 2 Misfires 1 | . . . 1 Weapon Failures 1 | . . . 1 Overload Shots . | . . . . Overflow Damage . | . . . . Projectiles . | . . . . Explosions . | . . . . Melee . | . . . . Knockbacks . | . . . . Impact . | . . . . Kinetic . | . . . . Secondary . | . . . . Self-Inflicted Damage 110 | . 110 . . Shots 4 | . 4 . . Rammed 4 | . 4 . . Targets Rammed 4 | . 4 . . Kicked . | . . . . Crushed . | . . . . Highest Temperature 278 | 30 206 158 278 Average Temperature 67 | 12 66 72 84 Received Heat Transfer 249 | . 123 78 48 Effects 1 | . . . 1 Energy Bleed 1 | . . . 1 Siege Activations . | . . . . Robots Corrupted . | . . . . Combat Hostiles . | . . . . Parts Fried . | . . . . Impact Corruptions . | . . . . Robots Melted 1 | . 1 . . Combat Hostiles 1 | . 1 . . Parts Melted 3 | . 2 1 . Heat Transferred 3256 | 296 1369 148 1443 Parts Sabotaged . | . . . . Parts Stolen . | . . . . Parts Stripped . | . . . . Power Chain Reactions . | . . . . Alert | -11 -10 -10 -10 ------- Run | Yrd Mat Min Sub Peak Influence 225 | 15 225 73 . Initial 15 | . 9 15 . Average 81 | 4 94 46 . Maximum Alert Level 1 | . 1 . . Low Security (%) 92 | 100 90 100 . Level 1 7 | . 9 . . Level 2 . | . . . . Level 3 . | . . . . Level 4 . | . . . . Level 5 . | . . . . High Security . | . . . . Max Security . | . . . . Squads Dispatched 1 | . 1 . . Investigation . | . . . . Extermination . | . . . . Reinforcement 1 | . 1 . . Assault . | . . . . Garrison . | . . . . Intercept . | . . . . Searches Triggered . | . . . . Construction Impeded . | . . . . Haulers Reinforced . | . . . . Active Scanning Responses . | . . . . Cargo Convoy Interrupts . | . . . . Stealth | -11 -10 -10 -10 --------- Run | Yrd Mat Min Sub Distress Signals 2 | . 2 . . Communications Jammed . | . . . . Distress Signals . | . . . . Times Spotted 43 | . 32 2 9 Peak Tracking Total 5 | . 5 2 3 Tactical Retreats . | . . . . Traps | -11 -10 -10 -10 ------- Run | Yrd Mat Min Sub Traps Triggered 1 | . 1 . . Indirectly . | . . . . Trap Hack Attempts . | . . . . Triggered . | . . . . Disarmed . | . . . . Reprogrammed . | . . . . Reused . | . . . . Traps Extracted . | . . . . Installed . | . . . . Triggered . | . . . . Machines | -11 -10 -10 -10 ---------- Run | Yrd Mat Min Sub Machines Disabled 4 | . 4 . . Max in Single Turn 2 | . 2 . . Machines Repaired . | . . . . Machines Dismantled . | . . . . Machines Sabotaged . | . . . . Overloaded Fab Kills . | . . . . Hacking | -11 -10 -10 -10 --------- Run | Yrd Mat Min Sub Machines Accessed 10 | . 10 . . Terminals 8 | . 8 . . Fabricators . | . . . . Repair Stations 1 | . 1 . . Recycling Units 1 | . 1 . . Scanalyzers . | . . . . Garrison Access . | . . . . Total Hacks 18 | . 18 . . Successful 8 | . 8 . . Failed 10 | . 10 . . Catastrophic 3 | . 3 . . Database Lockouts . | . . . . Manual 12 | . 12 . . Terminals 13 | . 13 . . Fabricators . | . . . . Repair Stations 3 | . 3 . . Recycling Units 2 | . 2 . . Scanalyzers . | . . . . Garrison Access . | . . . . Terminal Hacks 3 | . 3 . . Level Access Points 1 | . 1 . . Branch Access Points 1 | . 1 . . Terminal Index 1 | . 1 . . Fabricator Hacks . | . . . . Repair Station Hacks 2 | . 2 . . Scan Component 1 | . 1 . . Repair 1 | . 1 . . Recycling Unit Hacks 2 | . 2 . . Report Inventory 1 | . 1 . . Retrieve Components 1 | . 1 . . Scanalyzer . | . . . . Garrison Access Hacks . | . . . . Unauthorized Hacks 1 | . 1 . . Terminals 1 | . 1 . . Operators 1 | . 1 . . Fabricators . | . . . . Repair Stations . | . . . . Recycling Units . | . . . . Scanalyzers . | . . . . Garrison Access . | . . . . Data Cores Recovered . | . . . . Used . | . . . . Hacking Detections 8 | . 8 . . Full Trace Events . | . . . . Feedback Events . | . . . . Feedback Blocked . | . . . . Robot Schematics Acquired . | . . . . Robots Built . | . . . . Authchips . | . . . . Time . | . . . . Total Robot Build Rating . | . . . . Part Schematics Acquired . | . . . . Parts Built . | . . . . Authchips . | . . . . Time . | . . . . Total Part Build Rating . | . . . . Parts Repaired 1 | . 1 . . Time 26 | . 26 . . Parts Recycled . | . . . . Recycled Matter . | . . . . Retrieved Matter . | . . . . Retrieved Components 1 | . 1 . . Parts Scanalyzed . | . . . . Part Schematics Acquired . | . . . . Parts Damaged . | . . . . Bothacking | -11 -10 -10 -10 ------------ Run | Yrd Mat Min Sub Used RIF Installer . | . . . . Robots Hacked . | . . . . Non-combat . | . . . . Combat . | . . . . Robot Hacks Applied . | . . . . Relay Couplers Released . | . . . . Fabnet Peak Effective % . | . . . . Robots Rewired . | . . . . Allies Hacked . | . . . . Hacks Repelled . | . . . . Allies | -11 -10 -10 -10 -------- Run | Yrd Mat Min Sub Total Allies . | . . . . Largest Group . | . . . . Highest-Rated Group . | . . . . Highest-Rated Ally . | . . . . Total Orders . | . . . . Ally Attacks . | . . . . Total Damage . | . . . . Kills . | . . . . Allies Corrupted . | . . . . Allies Melted . | . . . . Intel | -11 -10 -10 -10 ------- Run | Yrd Mat Min Sub Robot Analysis Total . | . . . . Derelict Logs Recovered . | . . . . Drone Launches . | . . . . Drone Recoveries . | . . . . Exploration | -11 -10 -10 -10 ------------- Run | Yrd Mat Min Sub Turns Passed 3273 | 206 1799 264 1004 Spaces Moved 1763 | 114 1008 104 537 Core 38 | 5 . . 33 Treads 1725 | 109 1008 104 504 Legs . | . . . . Wheels . | . . . . Hover . | . . . . Flight . | . . . . Fastest Speed 50 | 50 160 160 160 Average Speed 160 | 155 160 160 162 Slowest Speed 200 | 160 160 160 200 Overloaded Moves . | . . . . Propulsion Burnouts . | . . . . Robots Hopped . | . . . . Cave-ins Triggered . | . . . . Exploration Rate (%) 43 | 6 99 26 44 Regions Visited 3 Branch Regions 2 Pre-discovered Areas . | . . . . Known Exits Taken 1 | . 1 . . Unknown Exits Taken 2 | 1 . 1 . Scrap Searched 3 | . . . 3 Spaces Dug 16 | . 16 . . Terrain Destroyed 77 | . 66 11 . Melee . | . . . . Projectile . | . . . . AOE 77 | . 66 11 . Terrain Rammed . | . . . . Walls Destroyed . | . . . . Machines Disabled . | . . . . Actions | -11 -10 -10 -10 --------- Run | Yrd Mat Min Sub Total 2045 | 132 1130 186 597 Wait 111 | . 41 68 2 Move 1760 | 113 1007 103 537 Hop . | . . . . Pick Up 23 | 4 12 1 6 Fast Attach 13 | 7 3 . 3 Attach 4 | . 2 . 2 Detach . | . . . . Swap 16 | . 8 3 5 Drop 15 | . 9 2 4 Fire 99 | 8 44 9 38 Melee . | . . . . Ram . | . . . . Kick . | . . . . Crush 4 | . 4 . . Escape Stasis . | . . . . Rewire . | . . . . Trap . | . . . . Miscellaneous . | . . . . Route ------- -11/Scrapyard -10/Materials (discovered 4 exits: *Mat x3 / *Min) -10/Mines -10/Subcaves (discovered 1 exit: [*Mat]) History --------- Turn | Location | Event 9 | -11/Scrapyard | Discovered new exit (range 14) 207 | -11/Scrapyard | Entered Materials 310 | -10/Materials | Build established: Mutant 344 | -10/Materials | Identified exit to Materials 461 | -10/Materials | Identified exit to Mines 834 | -10/Materials | Repaired Lgt. Treads 2006 | -10/Materials | Entered Mines 2256 | -10/Mines | Discovered new exit (range 9) 2270 | -10/Mines | Entered Subcaves 2294 | -10/Subcaves | Shifting Twisted Machinery released Shrapnel Trap 2299 | -10/Subcaves | Discovered new exit (range 9) 2301 | -10/Subcaves | Shifting Twisted Machinery released Sub. Machine Gun 2525 | -10/Subcaves | Ambushed by Subdwellers from Twisted Machinery 3077 | -10/Subcaves | Core integrity fell below 50% 3129 | -10/Subcaves | Lost 3 parts (1p2n) 3167 | -10/Subcaves | Core integrity fell below 20% 3248 | -10/Subcaves | Shifting Twisted Machinery released Shrapnel Trap 3253 | -10/Subcaves | Shifting Twisted Machinery released Sub. Shrapnel Launcher 3274 | -10/Subcaves | Destroyed by AJ-X9O(R) with Subdweller Machine Gun Last Messages --------------- 03092_ Lgt. Nuclear Core destroyed. 03092_ System corrupted: Beam Cannon failed to cycle. 03096_ Lgt. Treads destroyed. 03116_ ZA-V3Z(R) destroyed. 03131_ Dropped Riot Gun. 03132_ Acquired Sub. Machine Gun. 03133_ Acquired 23 matter. 03167_ Y-45 Defender destroyed. 03174_ Beam Rifle fries itself beyond repair. 03175_ Heat Sink fries itself beyond repair. 03176_ Acquired Lgt. Treads. 03180_ Acquired 20 matter. 03181_ Hvy. Assault Rifle fries itself beyond repair. 03239_ W6-OUN(R) destroyed. Shrapnel Trap falls loose from the Twisted Machinery. 03249_ Acquired Sub. Power Source. 03251_ 5J-R04(u) tweaks Twisted Machinery. Sub. Shrapnel Launcher falls loose from the Twisted Machinery. 03254_ 5J-R04(u) tweaks Twisted Machinery. 03271_ T9-WNQ(R) destroyed. Map ----- +----------------------------------------------------+ | | | ?????????????????????????????????????????????????? | | ?????????????????????????????????????????????????? | | ?????????????????????????????????????????????????? | | ?????????????????????????????????????????????????? | | ?????????????????????????????????????????????????? | | ???????#"????????????????????????????????????????? | | ??????## ????????????????????????????????????????? | | ???????" ???????????????????????????????????????? | | ??????? ????????? ?????????????????????????????? | | ???????? ???????" ?????????????????????????????? | | ????????? #####? ??????????????????????????????? | | ?????????? # ????????????????????????????????? | | ??????????## ?????????????????????????????????? | | ??????????#" ##?????????????????????????????????? | | ????????###" "###?###???????????????????????????? | | ??????### " ### ##??????????????????????????? | | #####?# #???###????????????????????? | | ## ### ######### #???# ##???????????????????? | | #??????##!##?## #??? ???????????????? | | # #????##%[#?# #""""???????????????? | | # # ### #??## #?# #" "#???????????????? | | ##### #### ### #""""##??????????????? | | #??# ""%"]"#??????????????? | | #??# ## """" ##??????????????? | | #??## ## @ R %% #??????????????? | | #??## """ "" "" " #??????????? | | ##??? ##### "" """" " "#"#" "???????????? | | #???? #???#"" #"#" # " #&""##????????????????? | | ????? #??? "" " " " "# """????????????????? | | ????? ???"" """ ### ????????????????? | | ????? #????### "## ## ##??"" ##???????????????? | | ?? " ##?????? ???##?###???" %???????????????? | | ###????????????????????## ??????????????? | | " "?????????????????????????? ??????????????? | | #????????????????????????? #??????????????? | | # "???????????????????????????????????????????? | | #????????????????????????????????????????????????? | | ?????????????????????????????????????????????????? | | ?????????????????????????????????????????????????? | | ?????????????????????????????????????????????????? | | ?????????????????????????????????????????????????? | | ?????????????????????????????????????????????????? | | ?????????????????????????????????????????????????? | | ?????????????????????????????????????????????????? | | ?????????????????????????????????????????????????? | | ?????????????????????????????????????????????????? | | ?????????????????????????????????????????????????? | | ?????????????????????????????????????????????????? | | ?????????????????????????????????????????????????? | +----------------------------------------------------+ Best States ------------- Heat Dissipation 25 Coolant Potential 50 Energy Generation 15 Energy Capacity 200 Matter Stores 300 Matter Capacity 300 Sight Range 21 Terrain Scan Density 10 Evasion (%) 40 Recoil Reduction 2 Item Schematics ----------------- None Robot Schematics ------------------ None Fabricated ------------ Nothing Alien Tech Used ----------------- None Achievements -------------- None Challenges ------------ None Game ------ Seed AnalysisImpactAmplifier Manual? 0 Play Time 00:30:03 Cumulative 24.6 hours Start 2024.05.30 @ 20:26:36 End 2024.05.30 @ 21:24:10 Sessions 3 Manual Loads 0 Difficulty Rogue Special Mode None Game No. 48 Rogue 48 Adventurer 0 Explorer 0 Win Type - Total 0 Types 0/0/0/0/0/0/0/0/0 Lore% 19 Gallery% 19 Achievement% 23 Wizard Run 0 Options --------- Layout 0 ASCII 0 Keyboard 0 Movement Arrows Keybinds 0 Fullscreen 2 Font 18/Terminus Map View 76x50 Zoom Use 0% Tactical HUD 1 Map Filters NONE Filters NONE Steam 1 RUN: b293bc99-bd22-48d0-8054-88fb79e6ef31